bitfinex-derivatives/quotes_BNBF0:USTF0_20250220
["timestamp","ask_amount","ask_price","bid_price","bid_amount"]
[1740076448771,3.09054299,654.24,653.59,1.13018886]
[1740076448970,1.584,654.26,653.57,1.13018886]
[1740076449274,3.0906217,654.25,653.57,1.13018886]
[1740076449469,3.0906217,654.24,653.57,1.13018886]
[1740076449674,3.0906217,654.23,653.57,1.13018886]
[1740076449871,3.0906217,654.22,653.57,1.13018886]
[1740076450072,3.0906217,654.21,653.57,1.13018886]
[1740076450274,3.0906217,654.2,653.57,1.13018886]
[1740076450470,3.0906217,654.19,653.57,1.13018886]
[1740076450673,3.0906217,654.18,653.57,1.13018886]
[1740076450871,3.0906217,654.17,653.57,1.13018886]
[1740076451072,3.0906217,654.16,653.57,1.13018886]
[1740076451274,2.2070337,654.22,653.57,1.13018886]
[1740076451474,3.09390384,654.21,653.43,1.13018886]
[1740076451675,3.09390384,654.2,653.43,1.13018886]
[1740076451872,5.30093754,654.19,653.43,1.13018886]
[1740076452069,3.09390384,654.18,653.43,1.13018886]
[1740076452269,3.09390384,654.17,653.43,1.13018886]
[1740076452469,3.09390384,654.16,653.43,1.13018886]
[1740076452672,3.09390384,654.15,653.43,1.13018886]
[1740076452980,3.09390384,654.14,653.43,1.13018886]
[1740076453176,2.2070337,654.19,653.43,1.13018886]
[1740076453177,3.09390384,654.13,653.43,1.13018886]
[1740076453372,5.30093754,654.12,653.43,1.13018886]
[1740076453575,3.09390384,654.11,653.43,1.13018886]
[1740076453877,3.09390384,654.1,653.62,1.13018886]
[1740076454078,2.2070337,654.12,653.62,1.13018886]
[1740076454276,3.09408666,654.11,653.62,1.13018886]
[1740076454575,2.2070337,654.12,653.62,1.13018886]
[1740076454970,5.959,654.66,653.62,1.13018886]
[1740076455175,3.09398674,654.49,653.62,1.13018886]
[1740076455375,3.09398674,654.48,653.62,1.13018886]
[1740076455571,3.09398674,654.47,653.62,1.13018886]
[1740076455777,3.09398674,654.46,653.62,1.13018886]
[1740076455978,3.09398674,654.45,653.68,1.13018886]
[1740076456172,3.09398674,654.44,653.68,1.13018886]
[1740076456376,3.09398674,654.43,653.68,1.13018886]
[1740076456677,3.09398674,654.42,653.68,1.13018886]
[1740076456977,3.09398674,654.41,653.68,1.13018886]
[1740076457175,3.09398674,654.4,653.68,1.13018886]
[1740076457472,3.09398674,654.39,653.68,1.13018886]
[1740076457778,3.09398674,654.38,653.68,1.13018886]
[1740076457971,3.09398674,654.37,653.68,1.13018886]
[1740076458171,3.09398674,654.36,653.68,1.13018886]
[1740076458375,3.09398674,654.35,653.68,1.13018886]
[1740076458575,3.09398674,654.34,653.63,1.13018886]
[1740076458775,3.09398674,654.33,653.63,1.13018886]
[1740076458975,3.09398674,654.32,653.63,1.13018886]
[1740076459274,3.09398674,654.31,653.63,1.13018886]
[1740076459479,5.30230919,654.3,653.63,1.13018886]
[1740076459676,3.09398674,654.29,653.63,1.13018886]
[1740076459882,3.09398674,654.28,653.63,1.13018886]
[1740076460082,3.09398674,654.27,653.63,1.13018886]
[1740076460281,3.09398674,654.26,653.63,1.13018886]
[1740076460484,3.09398674,654.25,653.63,1.13018886]
[1740076460677,3.09398674,654.24,653.63,1.13018886]
[1740076460876,3.09398674,654.23,653.63,1.13018886]
[1740076461081,3.09398674,654.22,653.45,1.13018886]
[1740076461284,3.09398674,654.21,653.45,1.13018886]
[1740076461480,5.30230919,654.2,653.45,1.13018886]
[1740076461684,3.09398674,654.19,653.45,1.13018886]
[1740076461883,3.09448018,654.18,653.45,1.13018886]
[1740076462079,2.20832245,654.2,653.45,1.13018886]
[1740076462281,3.09449805,654.19,653.45,1.13018886]
[1740076462482,3.09449805,654.18,653.45,1.13018886]
[1740076462678,2.20832245,654.2,653.45,1.13018886]
[1740076462882,5.30315874,654.19,653.45,1.13018886]
[1740076463082,3.09483629,654.18,653.45,1.13018886]
[1740076463284,3.09483629,654.17,653.45,1.13018886]
[1740076463485,2.20832245,654.19,653.45,1.13018886]
[1740076464385,2.20832245,654.19,653.49,1.13018886]
[1740076464584,1.376,654.47,653.49,1.13018886]
[1740076464778,3.09532112,654.46,653.49,1.13018886]
[1740076464984,3.09532112,654.45,653.49,1.13018886]
[1740076465284,3.09532112,654.44,653.49,1.13018886]
[1740076465485,3.09532112,654.43,653.49,1.13018886]
[1740076465680,3.09532112,654.42,653.49,1.13018886]
[1740076465885,3.09532112,654.41,653.49,1.13018886]
[1740076466081,3.09532112,654.4,653.49,1.13018886]
[1740076466387,3.09532112,654.39,653.49,1.13018886]
[1740076466583,3.09532112,654.38,653.49,1.13018886]
[1740076466786,3.09532112,654.37,653.49,1.13018886]
[1740076466983,3.09569262,654.36,653.49,1.13018886]
[1740076467288,3.09569262,654.36,653.4,0.30609121]
[1740076467289,2.20904093,654.4,653.51,1.13018886]
[1740076467486,3.0958086,654.39,653.51,1.13018886]
[1740076467687,2.20904093,654.4,653.51,1.13018886]
[1740076468086,2.20904093,654.39,653.51,1.13018886]
[1740076469488,2.20904093,654.38,653.51,1.13018886]
[1740076470489,2.20904093,654.38,653.4,0.30609121]
[1740076470490,2.20904093,654.38,653.64,1.13018886]
[1740076471390,2.20904093,654.37,653.64,1.13018886]
[1740076472594,2.20904093,654.37,653.66,1.13018886]
[1740076473393,2.20904093,654.36,653.66,1.13018886]
[1740076474196,2.20904093,654.36,653.4,0.30609121]
[1740076474197,2.20904093,654.36,653.64,1.13018886]
[1740076475298,1.499,654.46,653.64,1.13018886]
[1740076475797,2.21076848,654.45,653.64,1.13018886]
[1740076477299,2.21076848,654.45,653.4,0.30609121]
[1740076477898,3.0977077,654.44,653.4,0.30609121]
[1740076478105,3.0977077,654.43,653.4,0.30609121]
[1740076478293,3.0977077,654.42,653.4,0.30609121]
[1740076478498,3.0977077,654.41,653.4,0.30609121]
[1740076478797,3.0977077,654.4,653.4,0.30609121]
[1740076478998,3.0977077,654.39,653.4,0.30609121]
[1740076479200,3.0977077,654.38,653.4,0.30609121]
[1740076479399,3.0977077,654.37,653.4,0.30609121]
[1740076479698,3.0977077,654.36,653.4,0.30609121]
[1740076479899,3.0977077,654.35,653.4,0.30609121]
[1740076480099,3.0977077,654.34,653.4,0.30609121]
[1740076480299,3.0977077,654.33,653.4,0.30609121]
[1740076480598,3.0977077,654.32,653.4,0.30609121]
[1740076480800,3.0977077,654.31,653.43,1.13018886]
[1740076480999,3.0977077,654.3,653.43,1.13018886]
[1740076481199,3.0977077,654.29,653.43,1.13018886]
[1740076481400,3.0977077,654.28,653.43,1.13018886]
[1740076481702,5.30847618,654.27,653.43,1.13018886]
[1740076482000,3.0977077,654.26,653.43,1.13018886]
[1740076482193,3.0977077,654.25,653.43,1.13018886]
[1740076482397,2.21076848,654.27,653.43,1.13018886]
[1740076482398,3.0977077,654.24,653.43,1.13018886]
[1740076482598,3.0977077,654.23,653.43,1.13018886]
[1740076482796,3.0977077,654.22,653.43,1.13018886]
[1740076482997,3.0977077,654.21,653.43,1.13018886]
[1740076483195,3.0977077,654.2,653.43,1.13018886]
[1740076483398,3.0977077,654.19,653.86,1.13018886]
[1740076483598,3.0977077,654.18,653.86,1.13018886]
[1740076483801,3.0977077,654.17,653.86,1.13018886]
[1740076484001,3.0977077,654.16,653.86,1.13018886]
[1740076484197,3.0977077,654.15,653.86,1.13018886]
[1740076484405,3.0977077,654.14,653.86,1.13018886]
[1740076484704,3.0977077,654.13,653.86,1.13018886]
[1740076484902,3.0977077,654.12,653.86,1.13018886]
[1740076485102,3.0977077,654.11,653.86,1.13018886]
[1740076485302,3.0977077,654.1,653.86,1.13018886]
[1740076485500,3.0977077,654.09,653.86,1.13018886]
[1740076485803,2.21076848,654.1,653.86,1.13018886]
[1740076485804,3.0977077,654.08,653.86,1.13018886]
[1740076486004,3.0977077,654.07,653.88,1.13018886]
[1740076486303,3.09936432,654.06,653.88,1.13018886]
[1740076486499,3.09936432,654.05,653.88,1.13018886]
[1740076486701,2.21076848,654.1,653.88,1.13018886]
[1740076486902,3.09977679,654.09,653.88,1.13018886]
[1740076487103,3.09977679,654.08,653.88,1.13018886]
[1740076487298,3.09977679,654.07,653.88,1.13018886]
[1740076487502,3.09977679,654.06,653.88,1.13018886]
[1740076487703,3.09977679,654.05,653.88,1.13018886]
[1740076487899,3.09977679,654.04,653.88,1.13018886]
[1740076488204,3.09977679,654.03,653.88,1.13018886]
[1740076488403,2.21076848,654.06,653.84,1.13018886]
[1740076488599,3.10011332,654.05,653.84,1.13018886]
[1740076488801,3.10011332,654.04,653.84,1.13018886]
[1740076489003,2.21076848,654.06,653.84,1.13018886]
[1740076489800,2.21076848,654.05,653.84,1.13018886]
[1740076491305,0.642,654.36,653.4,0.30609121]
[1740076491306,0.642,654.36,653.46,1.13018886]
[1740076491605,2.21291624,654.35,653.46,1.13018886]
[1740076493204,2.21291624,654.34,653.46,1.13018886]
[1740076493506,2.21291624,654.34,653.4,0.30609121]
[1740076494301,2.21291624,654.33,653.4,0.30609121]
[1740076495307,3.10085629,654.32,653.4,0.30609121]
[1740076495501,3.10085629,654.31,653.4,0.30609121]
[1740076495807,5.31377253,654.3,653.4,0.30609121]
[1740076496000,3.10085629,654.29,653.4,0.30609121]
[1740076496200,3.10085629,654.28,653.4,0.30609121]
[1740076496404,3.10085629,654.27,653.4,0.30609121]
[1740076496708,3.10085629,654.26,653.31,1.13018886]
[1740076496900,3.10085629,654.25,653.31,1.13018886]
[1740076497105,3.10085629,654.24,653.31,1.13018886]
[1740076497305,3.10085629,654.23,653.31,1.13018886]
[1740076497501,3.10085629,654.22,653.31,1.13018886]
[1740076497808,3.10085629,654.21,653.31,1.13018886]
[1740076498008,3.10085629,654.2,653.31,1.13018886]
[1740076498208,3.10085629,654.19,653.31,1.13018886]
[1740076498409,3.10085629,654.18,653.31,1.13018886]
[1740076498610,3.10085629,654.17,653.31,1.13018886]
[1740076498809,3.10085629,654.16,653.31,1.13018886]
[1740076499105,0.642,654.36,653.29,1.13018886]
[1740076499106,5.31377253,654.15,653.29,1.13018886]
[1740076499407,3.10085629,654.14,653.29,1.13018886]
[1740076499615,3.10085629,654.13,653.29,1.13018886]
[1740076499811,3.10085629,654.12,653.29,1.13018886]
[1740076500007,2.21291624,654.15,653.29,1.13018886]
[1740076500008,3.10085629,654.11,653.29,1.13018886]
[1740076500314,3.10085629,654.1,653.29,1.13018886]
[1740076500508,2.21291624,654.15,653.29,1.13018886]
[1740076500509,3.10085629,654.09,653.29,1.13018886]
[1740076500711,3.10085629,654.08,653.29,1.13018886]
[1740076500911,3.10085629,654.07,653.29,1.13018886]
[1740076501112,3.10085629,654.06,653.29,1.13018886]
[1740076501311,3.10085629,654.05,653.29,1.13018886]
[1740076501513,3.10085629,654.04,653.29,1.13018886]
[1740076501713,3.10085629,654.03,653.12,1.13018886]
[1740076501913,3.10085629,654.02,653.12,1.13018886]
[1740076502114,3.10085629,654.01,653.12,1.13018886]
[1740076502312,3.10085629,654.0,653.12,1.13018886]
[1740076502515,3.10085629,653.99,653.12,1.13018886]
[1740076502713,3.10085629,653.98,653.12,1.13018886]
[1740076503015,5.31377253,653.97,653.12,1.13018886]
[1740076503216,3.10085629,653.96,653.12,1.13018886]
[1740076503416,3.10085629,653.95,653.12,1.13018886]
[1740076503617,3.10085629,653.94,653.12,1.13018886]
[1740076503818,3.10085629,653.93,653.12,1.13018886]
[1740076504017,3.10085629,653.92,653.12,1.13018886]
[1740076504219,3.10085629,653.92,652.67,1.59591543]
[1740076504220,3.10085629,653.91,653.15,1.13018886]
[1740076504417,3.10085629,653.9,653.15,1.13018886]
[1740076504613,3.10085629,653.89,653.15,1.13018886]
[1740076504814,2.21291624,653.9,653.15,1.13018886]
[1740076506018,3.09590031,653.89,653.15,1.13018886]
[1740076506216,3.09590031,653.88,653.15,1.13018886]
[1740076506516,3.09626007,653.87,653.15,1.13018886]
[1740076506720,3.09630907,653.86,653.15,1.13018886]
[1740076506913,2.21291624,653.89,653.15,1.13018886]
[1740076507119,3.09631846,653.88,653.15,1.13018886]
[1740076507319,2.21291624,653.88,653.5,1.13018886]
[1740076508923,1.574,654.08,653.5,1.13018886]
[1740076509116,3.09666293,654.07,653.5,1.13018886]
[1740076509320,3.09666293,654.06,653.5,1.13018886]
[1740076509520,3.09666293,654.05,653.5,1.13018886]
[1740076509717,3.09666293,654.04,653.44,1.13018886]
[1740076509921,3.09666293,654.03,653.44,1.13018886]
[1740076510123,3.09666293,654.02,653.44,1.13018886]
[1740076510324,3.09666293,654.01,653.44,1.13018886]
[1740076510525,3.09666293,654.0,653.44,1.13018886]
[1740076510724,3.09666293,653.99,653.44,1.13018886]
[1740076510928,3.09666293,653.98,653.44,1.13018886]
[1740076511127,2.21043734,654.06,653.44,1.13018886]
[1740076511326,2.21043734,653.97,653.44,1.13018886]
[1740076512026,2.21043734,653.97,652.78,1.59557396]
[1740076512027,2.21043734,653.97,653.47,1.13018886]
[1740076512928,1.574,654.08,653.47,1.13018886]
[1740076514424,1.574,654.08,653.01,1.13018886]
[1740076515926,1.574,654.08,653.02,0.30626933]
[1740076516931,1.574,654.08,653.02,1.43645819]
[1740076519829,2.20930389,654.07,653.02,1.43645819]
[1740076520030,2.20930389,654.07,653.02,0.30626933]
[1740076520936,3.63830389,654.07,653.02,0.30626933]
[1740076521129,2.20930389,654.06,653.02,0.30626933]
[1740076522436,2.20930389,654.06,653.31,1.13018886]
[1740076522633,2.20930389,654.05,653.31,1.13018886]
[1740076524538,2.20930389,654.04,653.31,1.13018886]
[1740076525735,3.09559949,654.03,653.35,1.13018886]
[1740076525929,3.09559949,654.02,653.35,1.13018886]
[1740076526134,3.09559949,654.01,653.35,1.13018886]
[1740076526334,3.09559949,654.0,653.35,1.13018886]
[1740076526532,3.09559949,653.99,653.35,1.13018886]
[1740076526736,3.09559949,653.98,653.35,1.13018886]
[1740076526933,3.09559949,653.97,653.35,1.13018886]
[1740076527132,3.09559949,653.96,653.35,1.13018886]
[1740076527338,3.09559949,653.95,653.35,1.13018886]
[1740076527640,3.09559949,653.94,653.35,1.13018886]
[1740076527939,3.09559949,653.93,653.35,1.13018886]
[1740076528233,3.09559949,653.92,653.35,1.13018886]
[1740076528440,3.09559949,653.91,653.35,1.13018886]
[1740076528738,3.09559949,653.9,653.35,1.13018886]
[1740076528938,3.09559949,653.89,653.27,1.13018886]
[1740076529132,3.09559949,653.88,653.27,1.13018886]
[1740076529438,3.09559949,653.87,653.27,1.13018886]
[1740076529635,3.09559949,653.86,653.27,1.13018886]
[1740076529839,5.30490338,653.85,653.27,1.13018886]
[1740076530039,3.09559949,653.84,653.27,1.13018886]
[1740076530341,3.09559949,653.83,653.27,1.13018886]
[1740076530640,3.09559949,653.82,653.27,1.13018886]
[1740076530839,3.09559949,653.81,653.27,1.13018886]
[1740076531140,3.09559949,653.8,653.27,1.13018886]
[1740076531341,3.09559949,653.79,653.27,1.13018886]
[1740076531640,3.09559949,653.79,653.03,0.83416597]
[1740076531641,3.09559949,653.78,653.26,1.13018886]
[1740076531835,3.09559949,653.77,653.26,1.13018886]
[1740076532037,3.09559949,653.76,653.26,1.13018886]
[1740076532238,3.09559949,653.75,653.26,1.13018886]
[1740076532436,3.09559949,653.74,653.26,1.13018886]
[1740076532635,3.09559949,653.73,653.26,1.13018886]
[1740076532835,3.09559949,653.72,653.26,1.13018886]
[1740076533038,3.09559949,653.71,653.26,1.13018886]
[1740076533241,3.09559949,653.7,653.26,1.13018886]
[1740076533443,3.09559949,653.69,653.26,1.13018886]
[1740076533644,3.09559949,653.68,653.26,1.13018886]
[1740076533947,3.09559949,653.67,653.26,1.13018886]
[1740076534244,3.09559949,653.66,653.26,1.13018886]
[1740076534444,3.09559949,653.65,653.26,1.13018886]
[1740076534643,3.09559949,653.64,653.02,1.13018886]
[1740076534840,3.09559949,653.63,653.02,1.13018886]
[1740076535041,3.09559949,653.62,653.02,1.13018886]
[1740076535243,3.09559949,653.61,653.02,1.13018886]
[1740076535446,3.09559949,653.6,653.02,1.13018886]
[1740076535649,3.09559949,653.59,653.02,1.13018886]
[1740076535839,3.09559949,653.58,653.02,1.13018886]
[1740076536042,2.20930389,653.63,653.02,1.13018886]
[1740076536043,3.09559949,653.57,653.02,1.13018886]
[1740076536239,3.09559949,653.56,653.02,1.13018886]
[1740076536443,5.30490338,653.55,653.02,1.13018886]
[1740076536641,3.09559949,653.54,653.02,1.13018886]
[1740076536846,3.09559949,653.53,653.02,1.13018886]
[1740076537049,3.09277663,653.52,653.02,1.13018886]
[1740076537244,2.20930389,653.55,653.02,1.13018886]
[1740076537441,2.20930389,653.55,652.56,0.83416597]
[1740076537442,3.09312755,653.54,652.88,1.13018886]
[1740076537646,3.09312755,653.53,652.88,1.13018886]
[1740076537845,5.30243144,653.52,652.88,1.13018886]
[1740076538048,3.09312755,653.51,652.88,1.13018886]
[1740076538248,3.09259637,653.5,652.88,1.13018886]
[1740076538549,2.20930389,653.52,652.88,1.13018886]
[1740076538749,3.09167637,653.51,652.88,1.13018886]
[1740076538949,2.20930389,653.52,652.88,1.13018886]
[1740076539350,3.09190631,653.51,652.88,1.13018886]
[1740076539649,5.3012102,653.5,652.88,1.13018886]
[1740076539849,3.09190631,653.49,652.88,1.13018886]
[1740076540048,2.20930389,653.5,652.88,1.13018886]
[1740076540049,3.09190631,653.48,652.88,1.13018886]
[1740076540350,3.09190631,653.47,652.88,1.13018886]
[1740076540650,1.772,653.72,652.72,1.13018886]
[1740076540848,3.08991688,653.71,652.72,1.13018886]
[1740076541043,3.08991688,653.7,652.72,1.13018886]
[1740076541249,3.08991688,653.69,652.72,1.13018886]
[1740076541444,3.0890999,653.68,652.72,1.13018886]
[1740076541645,3.08914574,653.67,652.72,1.13018886]
[1740076541843,3.08914574,653.66,652.72,1.13018886]
[1740076542051,2.20614145,653.69,652.72,1.13018886]
[1740076542253,3.08910256,653.68,652.72,1.13018886]
[1740076542446,3.08910256,653.67,652.72,1.13018886]
[1740076542647,2.20614145,653.69,652.72,1.13018886]
[1740076542946,2.20614145,653.66,652.72,1.13018886]
[1740076543153,3.08835302,653.65,652.8,1.13018886]
[1740076543352,3.08835302,653.64,652.8,1.13018886]
[1740076543653,3.08835302,653.63,652.8,1.13018886]
[1740076543853,3.08835302,653.62,652.8,1.13018886]
[1740076544047,3.08835302,653.61,652.8,1.13018886]
[1740076544250,2.20614145,653.61,652.8,1.13018886]
[1740076545955,1.772,653.72,652.8,1.13018886]
[1740076546158,1.772,653.72,652.72,1.13018886]
[1740076546456,2.20434042,653.71,652.72,1.13018886]
[1740076546757,1.179,653.7,652.72,1.13018886]
[1740076548256,2.20434042,653.69,652.72,1.13018886]
[1740076548659,3.08625965,653.68,652.72,1.13018886]
[1740076548860,3.08625965,653.67,652.72,1.13018886]
[1740076549058,3.08625965,653.66,652.72,1.13018886]
[1740076549258,3.08625965,653.65,652.72,1.13018886]
[1740076549460,3.08625965,653.64,652.66,1.13018886]
[1740076549660,3.08625965,653.63,652.66,1.13018886]
[1740076549858,3.08625965,653.62,652.66,1.13018886]
[1740076550059,2.20434042,653.69,652.66,1.13018886]
[1740076550259,2.112,653.61,652.66,1.13018886]
[1740076551259,1.32,653.6,652.66,1.13018886]
[1740076552066,2.20434042,653.59,652.66,1.13018886]
[1740076552461,3.084662,653.58,652.66,1.13018886]
[1740076552662,3.084662,653.57,652.33,1.13018886]
[1740076552965,3.084662,653.56,652.34,0.30658858]
[1740076553263,3.084662,653.55,652.34,0.30658858]
[1740076553456,3.084662,653.54,652.34,0.30658858]
[1740076553661,3.084662,653.53,652.34,0.30658858]
[1740076553861,3.084662,653.52,652.34,0.30658858]
[1740076554063,3.084662,653.51,652.34,0.30658858]
[1740076554259,3.084662,653.5,652.34,0.30658858]
[1740076554456,3.084662,653.49,652.34,0.30658858]
[1740076554660,3.084662,653.48,652.34,0.30658858]
[1740076554862,3.084662,653.47,652.34,0.30658858]
[1740076555058,3.084662,653.46,652.49,1.13018886]
[1740076555265,3.084662,653.45,652.49,1.13018886]
[1740076555564,3.084662,653.44,652.49,1.13018886]
[1740076555772,3.084662,653.43,652.49,1.13018886]
[1740076555972,5.28900242,653.42,652.49,1.13018886]
[1740076556171,3.084662,653.41,652.49,1.13018886]
[1740076556367,3.084662,653.4,652.49,1.13018886]
[1740076556564,3.084662,653.39,652.49,1.13018886]
[1740076556770,3.084662,653.38,652.49,1.13018886]
[1740076556965,3.084662,653.37,652.49,1.13018886]
[1740076557166,3.084662,653.36,652.49,1.13018886]
[1740076557370,3.084662,653.35,652.49,1.13018886]
[1740076557567,2.20434042,653.42,652.49,1.13018886]
[1740076557774,5.28820037,653.41,652.49,1.13018886]
[1740076557973,3.08385995,653.4,652.49,1.13018886]
[1740076558273,3.08385995,653.39,652.73,1.13018886]
[1740076558473,3.08385995,653.38,652.73,1.13018886]
[1740076558673,3.08385995,653.37,652.73,1.13018886]
[1740076558875,3.08385995,653.36,652.73,1.13018886]
[1740076559074,3.08385995,653.35,652.73,1.13018886]
[1740076559277,3.08385995,653.34,652.73,1.13018886]
[1740076559473,3.08385995,653.33,652.73,1.13018886]
[1740076559675,3.08385995,653.32,652.73,1.13018886]
[1740076559869,3.08385995,653.31,652.73,1.13018886]
[1740076560067,3.08385995,653.3,652.73,1.13018886]
[1740076560271,3.08385995,653.29,652.73,1.13018886]
[1740076560473,3.08385995,653.28,652.73,1.13018886]
[1740076560773,3.08385995,653.27,652.73,1.13018886]
[1740076561073,3.08385995,653.26,652.73,1.13018886]
[1740076561275,3.08385995,653.25,652.73,1.13018886]
[1740076561574,2.20434042,653.32,652.73,1.13018886]
[1740076561575,3.08385995,653.24,652.73,1.13018886]
[1740076561773,3.08385995,653.23,652.73,1.13018886]
[1740076561970,3.08385995,653.22,652.73,1.13018886]
[1740076562171,3.08385995,653.21,652.73,1.13018886]
[1740076562374,3.08124814,653.2,652.73,1.13018886]
[1740076562676,3.08124814,653.19,652.73,1.13018886]
[1740076562877,2.20434042,653.22,652.73,1.13018886]
[1740076563070,3.08111356,653.21,652.73,1.13018886]
[1740076563278,3.08111356,653.2,652.73,1.13018886]
[1740076563576,3.08111356,653.19,652.74,1.13018886]
[1740076563776,2.20434042,653.22,652.74,1.13018886]
[1740076564372,1.415,653.57,652.74,1.13018886]
[1740076564575,3.08011629,653.56,652.74,1.13018886]
[1740076564876,3.08011629,653.55,652.74,1.13018886]
[1740076565174,3.08011629,653.54,652.74,1.13018886]
[1740076565375,3.08011629,653.53,652.74,1.13018886]
[1740076565576,3.08011629,653.52,652.74,1.13018886]
[1740076565877,3.08011629,653.51,652.48,1.13018886]
[1740076566170,3.08041521,653.5,652.48,1.13018886]
[1740076566370,3.07921068,653.49,652.48,1.13018886]
[1740076566574,3.07921068,653.48,652.48,1.13018886]
[1740076566774,2.19961024,653.55,652.48,1.13018886]
[1740076567073,3.38528339,653.54,652.48,1.13018886]
[1740076567375,3.07925775,653.53,652.48,1.13018886]
[1740076567573,3.07925775,653.52,652.48,1.13018886]
[1740076567770,3.07925775,653.51,652.48,1.13018886]
[1740076567969,3.07925775,653.5,652.48,1.13018886]
[1740076568174,2.50563588,653.54,652.48,1.13018886]
[1740076568476,3.07694468,653.53,652.48,1.13018886]
[1740076568668,3.07694468,653.52,652.48,1.13018886]
[1740076568868,4.35019875,653.51,652.48,1.13018886]
[1740076569075,1.273,653.51,652.48,1.13018886]
[1740076569275,3.38165067,653.5,652.48,1.13018886]
[1740076569476,0.30604905,653.49,652.48,1.13018886]
[1740076569878,0.30604905,653.49,652.08,1.13018886]
[1740076570478,2.19961024,653.48,652.08,1.13018886]
[1740076570872,3.07547721,653.47,652.09,0.30670612]
[1740076571077,3.07547721,653.46,652.09,0.30670612]
[1740076571275,3.07547721,653.45,652.09,0.30670612]
[1740076571479,3.07547721,653.44,652.09,0.30670612]
[1740076571676,3.07547721,653.43,652.09,0.30670612]
[1740076571981,3.07547721,653.42,652.09,0.30670612]
[1740076572182,3.07547721,653.41,652.09,0.30670612]
[1740076572380,3.07547721,653.4,652.09,0.30670612]
[1740076572575,3.07547721,653.39,652.09,0.30670612]
[1740076572779,3.07547721,653.38,652.09,0.30670612]
[1740076572980,3.07547721,653.37,652.09,0.30670612]
[1740076573179,3.07547721,653.36,652.44,1.13018886]
[1740076573382,3.07547721,653.35,652.44,1.13018886]
[1740076573585,2.19961024,653.39,652.44,1.13018886]
[1740076573586,3.07547721,653.34,652.44,1.13018886]
[1740076573885,3.07547721,653.33,652.44,1.13018886]
[1740076574078,3.3816059,653.32,652.44,1.13018886]
[1740076574383,3.38161059,653.31,652.44,1.13018886]
[1740076574577,3.38161527,653.3,652.44,1.13018886]
[1740076574777,3.38161996,653.29,652.44,1.13018886]
[1740076574981,3.07547721,653.28,652.44,1.13018886]
[1740076575177,3.38162933,653.27,652.44,1.13018886]
[1740076575481,3.07547721,653.26,652.44,1.13018886]
[1740076575678,3.07547721,653.25,652.0,1.13018886]
[1740076575881,3.38164339,653.24,652.0,1.13018886]
[1740076576084,3.07547721,653.23,652.0,1.13018886]
[1740076576282,3.38165277,653.22,652.0,1.13018886]
[1740076576486,3.07547721,653.21,652.0,1.13018886]
[1740076576682,3.07547721,653.2,652.0,1.13018886]
[1740076576991,3.07547721,653.19,652.0,1.13018886]
[1740076577282,3.07547721,653.18,652.0,1.13018886]
[1740076577483,3.07547721,653.17,652.0,1.13018886]
[1740076577789,4.27447721,653.16,652.0,1.13018886]
[1740076577989,3.07547721,653.15,652.0,1.13018886]
[1740076578288,3.07547721,653.14,652.0,1.13018886]
[1740076578487,3.07547721,653.13,652.0,1.13018886]
[1740076578685,2.388,653.16,651.93,1.13018886]
[1740076578686,3.07547721,653.12,651.93,1.13018886]
[1740076578886,3.07547721,653.11,651.93,1.13018886]
[1740076579085,3.07547721,653.1,651.93,1.13018886]
[1740076579287,3.07547721,653.09,651.93,1.13018886]
[1740076579488,3.07547721,653.08,651.93,1.13018886]
[1740076579686,3.07547721,653.07,651.93,1.13018886]
[1740076579884,3.07547721,653.06,651.93,1.13018886]
[1740076580086,3.07547721,653.05,651.93,1.13018886]
[1740076580389,3.07547721,653.04,651.93,1.13018886]
[1740076580589,3.07547721,653.03,651.93,1.13018886]
[1740076580785,3.07547721,653.02,651.93,1.13018886]
[1740076581089,3.07547721,653.01,651.93,1.13018886]
[1740076581289,3.07547721,653.0,651.74,1.13018886]
[1740076581483,3.07547721,652.99,651.75,0.30686612]
[1740076581689,3.07547721,652.98,651.75,0.30686612]
[1740076581887,3.07547721,652.97,651.75,0.30686612]
[1740076582090,3.07547721,652.96,651.75,0.30686612]
[1740076582289,5.27508745,652.95,651.75,0.30686612]
[1740076582585,3.07547721,652.94,651.75,0.30686612]
[1740076582790,3.07547721,652.93,651.75,0.30686612]
[1740076582990,3.07547721,652.92,651.75,0.30686612]
[1740076583191,3.07547721,652.91,651.75,0.30686612]
[1740076583391,3.07547721,652.9,651.75,0.30686612]
[1740076583692,5.27508745,652.89,651.75,0.30686612]
[1740076583891,3.07547721,652.88,651.75,0.30686612]
[1740076584085,3.07547721,652.87,651.75,0.30686612]
[1740076584286,3.07547721,652.86,651.75,0.30686612]
[1740076584485,3.07547721,652.85,651.75,0.30686612]
[1740076584689,3.07547721,652.84,651.75,0.30686612]
[1740076584893,3.07547721,652.83,651.75,0.30686612]
[1740076585094,3.07547721,652.82,651.75,0.30686612]
[1740076585391,3.07547721,652.81,651.75,0.30686612]
[1740076585591,3.07547721,652.8,651.75,0.30686612]
[1740076585793,3.07547721,652.79,651.75,0.30686612]
[1740076585992,2.19961024,652.83,651.75,0.30686612]
[1740076586995,1.723,652.88,651.75,0.30686612]
[1740076593597,2.19507284,652.87,651.75,0.30686612]
[1740076595501,5.26898709,652.86,651.75,0.30686612]